bitfinex/quotes_SOLUSD_20260304
["timestamp","ask_amount","ask_price","bid_price","bid_amount"]
[1772620023717,9.60628742,89.956,89.878,4.82477569]
[1772620023718,9.60628742,89.956,89.898,4.23690151]
[1772620023919,9.60628742,89.956,89.902,4.23690151]
[1772620024219,9.60628742,89.956,89.912,4.23690151]
[1772620024521,4.12574575,89.983,89.901,3.69383402]
[1772620024696,4.12574575,89.983,89.891,94.55896584]
[1772620024697,4.25256241,90.004,89.937,4.82477569]
[1772620024902,11.11074075,90.003,89.938,4.52122465]
[1772620025205,15.36327337,90.004,89.952,4.23690151]
[1772620025407,4.25256241,90.003,89.952,4.23690151]
[1772620025918,11.11071096,90.004,89.954,4.23690151]
[1772620026123,10.99954096,90.004,89.954,4.23690151]
[1772620026419,4.25256241,90.003,89.954,4.23690151]
[1772620028123,11.1108642,90.002,89.955,11.11666944]
[1772620028425,4.25256241,90.001,89.956,4.23690151]
[1772620030227,4.25256241,89.999,89.958,4.23690151]
[1772620031728,4.25256241,89.999,89.924,4.23690151]
[1772620031926,4.25256241,89.999,89.923,11.12062542]
[1772620031927,4.25256241,89.999,89.931,4.23690151]
[1772620032121,16.19560848,90.0,89.934,3.69383402]
[1772620032122,4.25256241,89.997,89.934,3.69383402]
[1772620032427,4.25256241,89.997,89.935,4.23690151]
[1772620032930,4.25256241,89.997,89.94,4.52122465]
[1772620033124,5.08449737,90.02,89.94,4.52122465]
[1772620033125,4.25256241,90.012,89.94,4.52122465]
[1772620033328,4.25256241,90.011,89.947,4.52122465]
[1772620034610,4.25256241,90.009,89.952,4.23690151]
[1772620036314,4.25256241,90.009,89.928,4.82477569]
[1772620036315,4.25256241,89.989,89.913,4.23690151]
[1772620036619,94.43395178,90.01,89.915,4.23690151]
[1772620036620,4.25256241,89.957,89.915,4.23690151]
[1772620036927,4.25256241,89.957,89.902,50.02]
[1772620036928,4.25256241,89.957,89.908,11.12242711]
[1772620037128,4.25256241,89.957,89.909,4.23690151]
[1772620038528,4.34068554,89.955,89.911,4.32739248]
[1772620038917,11.11654586,89.956,89.903,11.12309934]
[1772620038918,4.34068554,89.949,89.903,11.12309934]
[1772620039217,4.34068554,89.949,89.904,4.32739248]
[1772620039717,4.34068554,89.949,89.897,11.12379647]
[1772620039918,4.34068554,89.939,89.893,4.32739248]
[1772620040430,4.34068554,89.937,89.894,11.12421296]
[1772620040624,4.34068554,89.937,89.895,4.32739248]
[1772620041432,55.58272933,89.956,89.895,4.32739248]
[1772620041433,11.11824319,89.943,89.895,4.32739248]
[1772620042515,11.11824319,89.943,89.897,4.48745419]
[1772620042830,5.08449737,89.94,89.897,4.48745419]
[1772620043028,4.28706327,89.939,89.897,4.48745419]
[1772620043236,4.28706327,89.939,89.887,4.48745419]
[1772620043430,4.28706327,89.929,89.887,4.48745419]
[1772620044713,4.28706327,89.927,89.889,4.48745419]
[1772620046910,11.12025443,89.926,89.89,11.12470797]
[1772620047114,15.4073177,89.926,89.891,4.48745419]
[1772620048344,4.28706327,89.938,89.891,4.48745419]
[1772620049043,11.11912074,89.936,89.893,4.48745419]
[1772620049937,4.28706327,89.95,89.893,4.48745419]
[1772620050239,4.28706327,89.949,89.893,4.48745419]
[1772620051036,4.28706327,89.947,89.895,4.48745419]
[1772620052830,4.28706327,89.945,89.897,4.48745419]
[1772620053127,55.57222722,89.973,89.896,38.93387914]
[1772620053128,27.78725041,89.97,89.901,4.48745419]
[1772620053344,11.11493959,89.969,89.912,4.48745419]
[1772620053534,15.40200286,89.969,89.912,4.48745419]
[1772620053722,5.08449737,89.99,89.896,42.62771316]
[1772620053723,4.28706327,89.988,89.919,4.77177733]
[1772620054065,4.28706327,90.008,89.937,4.96693726]
[1772620054343,4.28706327,90.008,89.923,0.14216157]
[1772620054344,4.28706327,90.008,89.953,4.48745419]
[1772620054724,4.28706327,89.979,89.923,4.48745419]
[1772620055047,4.28706327,89.977,89.925,4.48745419]
[1772620056542,4.28706327,89.969,89.918,11.12115124]
[1772620056748,4.28706327,89.959,89.918,11.12115124]
[1772620056940,44.43772877,90.014,89.918,4.48745419]
[1772620056941,4.28706327,89.957,89.918,4.48745419]
[1772620057850,11.11565495,89.964,89.918,4.48745419]
[1772620058853,4.28706327,89.969,89.922,4.48745419]
[1772620059061,4.28706327,89.967,89.924,4.48745419]
[1772620059631,4.28706327,89.959,89.923,11.12062542]
[1772620059837,4.28706327,89.959,89.918,4.48745419]
[1772620061051,44.43284573,90.024,89.906,3.69383402]
[1772620061052,12.37515507,90.07,89.925,0.28432314]
[1772620061234,12.37515507,90.07,89.921,4.82477569]
[1772620061235,4.28706327,90.106,90.066,5.79024882]
[1772620061438,27.73648123,90.134,90.072,2.75013416]
[1772620061650,38.83107372,90.134,90.072,2.75013416]
[1772620061834,11.09459249,90.134,90.066,0.31206434]
[1772620062131,11.09459249,90.134,90.067,2.75013416]
[1772620062537,38.83107372,90.134,90.067,2.75013416]
[1772620062734,0.2,90.11,90.067,2.75013416]
[1772620063137,0.2,90.11,90.069,2.75013416]
[1772620064055,11.08291125,90.229,90.117,4.62961576]
[1772620064247,11.08291125,90.229,90.09,0.28432314]
[1772620064248,5.08449737,90.21,90.121,4.48745419]
[1772620064742,38.79018939,90.229,90.081,3.69383402]
[1772620064743,5.08449737,90.17,90.081,3.69383402]
[1772620064949,5.08449737,90.17,90.092,4.48745419]
[1772620065157,11.09028601,90.169,90.097,4.48745419]
[1772620065660,38.81600105,90.169,90.097,4.48745419]
[1772620066033,4.28706327,90.168,90.097,4.48745419]
[1772620066240,4.28706327,90.204,90.112,4.48745419]
[1772620066658,3.69383402,90.225,90.112,4.48745419]
[1772620066659,4.28706327,90.199,90.112,4.48745419]
[1772620066957,3.69383402,90.225,90.112,4.48745419]
[1772620066958,4.28706327,90.179,90.112,4.48745419]
[1772620067254,4.28706327,90.169,90.1,4.48745419]
[1772620067553,4.28706327,90.167,90.104,3.69383402]
[1772620067752,4.28706327,90.167,90.105,4.48745419]
[1772620069851,4.32482099,90.165,90.107,4.23478314]
[1772620070055,4.32482099,90.198,90.111,4.23478314]
[1772620070262,4.60914413,90.189,90.111,4.23478314]
[1772620071544,4.60914413,90.179,90.111,4.23478314]
[1772620071945,38.81212711,90.178,90.112,11.09730113]
[1772620072150,38.81212711,90.178,90.115,3.69383402]
[1772620072151,4.60914413,90.177,90.115,3.69383402]
[1772620072359,4.32482099,90.177,90.116,4.23478314]
[1772620073263,4.32482099,90.171,90.112,11.09730113]
[1772620073657,4.32482099,90.169,90.112,11.09730113]
[1772620074052,5.06119716,90.17,90.106,11.09804008]
[1772620074053,4.32482099,90.167,90.106,11.09804008]
[1772620074452,4.32482099,90.167,90.107,4.23478314]
[1772620076671,4.32482099,90.149,90.087,11.10038074]
[1772620077174,4.32482099,90.139,90.076,11.10173631]
[1772620077575,4.32482099,90.139,90.077,4.23478314]
[1772620078662,94.27056761,90.166,90.079,4.23478314]
[1772620078663,4.32482099,90.137,90.079,4.23478314]
[1772620078869,11.09410015,90.138,90.082,4.23478314]
[1772620079275,4.32482099,90.137,90.082,4.23478314]
[1772620080858,4.32482099,90.135,90.084,4.23478314]
[1772620082480,4.32482099,90.135,90.083,11.10087363]
[1772620082857,4.32482099,90.135,90.051,55.52352489]
[1772620082858,4.60914413,90.127,90.065,11.10309221]
[1772620083272,4.32482099,90.119,90.065,11.10309221]
[1772620083474,4.32482099,90.119,90.066,4.23478314]
[1772620085177,4.32482099,90.117,90.068,4.23478314]
[1772620086568,11.09656228,90.118,90.068,4.23478314]
[1772620086965,4.32482099,90.117,90.068,4.23478314]
[1772620087578,4.32482099,90.115,90.07,4.23478314]
[1772620088980,11.09705484,90.114,90.071,11.10235258]
[1772620089175,4.32482099,90.113,90.072,4.23478314]
[1772620090885,4.32482099,90.109,90.048,11.10518834]
[1772620091080,4.32482099,90.099,90.048,38.86797176]
[1772620092076,4.32482099,90.099,90.049,4.23478314]
[1772620093081,4.32482099,90.097,90.051,4.23478314]
[1772620094769,4.32482099,90.107,90.051,4.23478314]
[1772620094982,4.32482099,90.107,90.054,4.23478314]
[1772620095884,3.69383402,90.161,90.025,4.82477569]
[1772620095885,4.32482099,90.117,90.056,4.23478314]
[1772620096088,4.32482099,90.127,90.059,4.51910628]
[1772620097897,4.32482099,90.125,90.064,4.23478314]
[1772620099984,4.32037308,90.099,90.042,4.24966785]
[1772620100182,4.32037308,90.099,90.043,4.24966785]
[1772620100384,4.32037308,90.099,90.045,3.69383402]
[1772620100583,4.32037308,90.099,90.046,4.24966785]
[1772620101396,5.06119716,90.07,90.047,11.10531167]
[1772620101608,4.32037308,90.079,90.047,11.10531167]
[1772620102611,4.40880051,90.069,90.047,11.10531167]
[1772620104016,4.40880051,90.069,90.042,27.76482086]
[1772620104808,4.40880051,90.156,90.078,8.80293285]
[1772620105005,4.40880051,90.139,90.085,4.13418386]
[1772620105207,4.40880051,90.129,90.067,4.13418386]
[1772620105406,4.40880051,90.129,90.069,4.13418386]
[1772620105605,4.40880051,90.129,90.076,4.13418386]
[1772620105800,4.40880051,90.129,90.078,4.13418386]
[1772620106109,4.40880051,90.127,90.08,4.13418386]
[1772620106295,4.40880051,90.127,90.083,4.13418386]
[1772620108104,0.28432314,90.109,90.048,12.31251057]
[1772620108315,0.28432314,90.118,90.05,4.13418386]
[1772620110125,0.28432314,90.116,90.052,4.13418386]
[1772620110418,0.28432314,90.106,90.052,4.13418386]
[1772620110628,4.3647125,90.103,90.052,4.13418386]
[1772620111825,4.3647125,90.103,90.019,12.31251057]
[1772620112029,4.64903564,90.049,89.999,4.13418386]
[1772620112214,0.28432314,90.047,89.999,4.13418386]
[1772620112416,0.28432314,90.047,90.0,11.11111111]
[1772620112726,11.10518834,90.048,90.001,4.13418386]
[1772620113327,38.86815919,90.048,90.001,4.13418386]
[1772620113520,0.28432314,90.047,89.992,3.69383402]
[1772620113726,0.28432314,90.047,89.993,11.11197537]
[1772620114114,4.15601595,90.047,89.994,4.13418386]
[1772620114315,11.10543499,90.046,89.996,4.13418386]
[1772620114723,11.10479376,90.052,89.999,4.13418386]
[1772620114932,11.10410479,90.057,90.009,4.13418386]
[1772620115135,11.10247585,90.07,90.019,4.13418386]
[1772620116234,4.15601595,90.08,90.021,4.13418386]
[1772620117020,11.1011201,90.081,90.028,4.13418386]
[1772620117334,11.09976468,90.092,90.039,4.13418386]
[1772620118426,38.8448647,90.102,90.041,4.13418386]
[1772620118833,4.15601595,90.101,90.041,4.13418386]
[1772620120439,4.15601595,90.099,90.043,4.13418386]
[1772620120639,5.06119716,90.13,90.042,38.8707492]
[1772620120640,11.08378368,90.222,90.106,8.95895955]
[1772620120842,11.08463115,90.215,90.144,3.69383402]
[1772620121032,4.15601595,90.214,90.149,4.13418386]
[1772620122543,4.15601595,90.212,90.151,4.13418386]
[1772620123747,4.15601595,90.212,90.158,4.13418386]
[1772620123748,11.08512265,90.211,90.158,4.13418386]
[1772620125030,11.08364829,90.223,90.158,4.13418386]
[1772620125639,11.08364829,90.223,90.163,4.13418386]
[1772620125948,4.15601595,90.222,90.163,4.13418386]
[1772620126934,4.15601595,90.214,90.163,4.13418386]
[1772620127742,11.0848769,90.213,90.168,4.13418386]
[1772620128035,11.08419745,90.219,90.168,4.13418386]
[1772620128948,4.11415438,90.218,90.168,4.13418386]
[1772620129950,4.11415438,90.216,90.172,3.69383402]
[1772620130650,4.11415438,90.216,90.173,4.2811297]
[1772620132256,11.08463115,90.215,90.174,15.37080078]
[1772620132465,11.08463115,90.215,90.175,4.2811297]
[1772620135341,4.11415438,90.214,90.176,11.08942512]
[1772620136150,4.11415438,90.214,90.17,11.09005067]
[1772620136347,11.0840638,90.22,90.171,4.2811297]
[1772620137461,11.0840638,90.22,90.173,4.2811297]
[1772620138452,4.11415438,90.219,90.173,4.2811297]
[1772620140147,4.11415438,90.229,90.178,4.2811297]
[1772620140547,4.11415438,90.228,90.178,4.2811297]
[1772620141839,4.11415438,90.226,90.183,4.2811297]
[1772620142046,4.11415438,90.224,90.179,11.08905621]
[1772620143557,4.11415438,90.209,90.16,11.09136087]
[1772620143758,4.11415438,90.209,90.09,12.37014424]
[1772620143759,4.39847752,90.199,90.143,11.09348479]
[1772620143963,4.11415438,90.194,90.143,11.09348479]
[1772620144168,4.11415438,90.194,90.142,4.2811297]
[1772620144169,4.11415438,90.183,90.122,4.2811297]
[1772620144462,4.11415438,90.194,90.127,4.56545284]
[1772620144668,4.11415438,90.194,90.127,4.2811297]
[1772620145061,4.11415438,90.194,90.129,4.2811297]
[1772620145670,4.11415438,90.192,90.131,4.2811297]
[1772620147065,4.11415438,90.192,90.136,4.42329127]
[1772620147263,4.11415438,90.192,90.138,4.2811297]
[1772620148254,4.11415438,90.213,90.147,4.2811297]
[1772620148455,4.11415438,90.213,90.149,4.2811297]
[1772620150474,4.11415438,90.213,90.142,3.69383402]
[1772620150475,4.11415438,90.211,90.151,4.2811297]
[1772620151356,11.08369572,90.223,90.156,4.2811297]
[1772620151558,4.11415438,90.222,90.156,4.2811297]
[1772620151768,0.28432314,90.221,90.156,4.2811297]
[1772620152174,4.11415438,90.222,90.167,4.2811297]
[1772620152365,4.11415438,90.222,90.171,3.69383402]
[1772620152566,11.08369572,90.223,90.172,4.2811297]
[1772620152766,0.2,90.23,90.176,4.2811297]
[1772620153962,0.2,90.23,90.181,4.2811297]
[1772620154360,0.2,90.23,90.18,3.69383402]
[1772620154361,0.2,90.23,90.186,4.2811297]
[1772620154960,0.2,90.24,90.186,4.56545284]
[1772620155163,0.2,90.27,90.199,3.69383402]
[1772620155377,5.7202383,90.313,90.254,4.2811297]
[1772620155562,5.2550751,90.32,90.254,4.2811297]
[1772620155775,11.07566897,90.288,90.254,4.2811297]
[1772620155978,4.11415438,90.287,90.255,11.07971857]
[1772620156573,4.11415438,90.287,90.245,4.2811297]
[1772620157276,27.68254873,90.31,90.245,4.2811297]
[1772620157277,4.11415438,90.296,90.245,4.2811297]
[1772620157465,11.07450844,90.298,90.245,4.2811297]
[1772620157660,11.07506781,90.293,90.245,4.2811297]
[1772620158062,11.07506781,90.293,90.247,4.2811297]
[1772620158655,4.15601595,90.309,90.25,4.39142035]
[1772620158860,11.07415317,90.301,90.25,4.39142035]
[1772620159960,11.07466247,90.297,90.25,4.39142035]
[1772620160156,4.15601595,90.301,90.252,4.39142035]
[1772620160462,11.07456397,90.298,90.252,4.39142035]
[1772620160657,4.15601595,90.301,90.252,4.39142035]
[1772620161777,11.07449811,90.298,90.253,38.77987435]
[1772620162083,11.07449811,90.298,90.254,4.23762875]
[1772620162664,11.07507245,90.293,90.254,4.23762875]
[1772620162870,11.07448402,90.298,90.254,4.23762875]
[1772620163072,11.27548488,90.29,90.254,4.23762875]
[1772620163761,4.15601595,90.289,90.248,11.08052069]
[1772620163966,4.15601595,90.287,90.249,4.23762875]
[1772620164692,0.2,90.29,90.249,4.23762875]
[1772620166285,0.2,90.29,90.251,4.23762875]
[1772620168001,11.27550391,90.29,90.251,4.23762875]
[1772620168185,0.2,90.29,90.251,4.23762875]
[1772620168391,0.2,90.29,90.253,4.23762875]
[1772620168888,4.15601595,90.306,90.255,3.69383402]
[1772620169196,11.07358396,90.305,90.256,4.23762875]
[1772620169695,4.15601595,90.304,90.256,4.23762875]
[1772620170276,4.15601595,90.318,90.257,43.88725454]
[1772620170470,0.2,90.32,90.265,3.69383402]
[1772620170672,0.2,90.32,90.26,14.80568377]
[1772620170673,11.05742118,90.437,90.278,4.47901002]
[1772620170975,5.0550751,90.38,90.308,4.47901002]
[1772620171180,3.69383402,90.434,90.308,4.47901002]
[1772620171497,5.0550751,90.39,90.308,4.47901002]
[1772620171685,5.0550751,90.4,90.308,4.47901002]
[1772620172274,5.0550751,90.4,90.317,3.69383402]
[1772620172275,38.71724244,90.399,90.317,3.69383402]
[1772620172491,38.71724244,90.399,90.312,3.69383402]
[1772620172492,0.04156016,90.398,90.318,4.47901002]
[1772620172675,0.04156016,90.397,90.318,4.47901002]
[1772620173192,0.04156016,90.388,90.318,4.47901002]
[1772620173883,0.04156016,90.378,90.318,4.47901002]
[1772620174089,0.04156016,90.366,90.318,4.47901002]
[1772620174285,5.0550751,90.37,90.322,3.69383402]
[1772620174286,0.04156016,90.361,90.322,3.69383402]
[1772620174493,0.04156016,90.361,90.314,11.07242896]
[1772620174687,0.04156016,90.358,90.309,15.5520354]
[1772620174907,0.04156016,90.358,90.31,4.47901002]
[1772620175286,0.28432314,90.364,90.313,4.47901002]
[1772620175692,11.06623139,90.365,90.313,4.47901002]
[1772620176199,0.04156016,90.378,90.323,4.47901002]
[1772620176704,27.6581631,90.39,90.328,4.47901002]
[1772620176911,0.04156016,90.389,90.328,4.47901002]
[1772620177202,0.04156016,90.368,90.319,11.07186749]
[1772620177409,0.04156016,90.368,90.313,11.07248347]
[1772620177924,0.04156016,90.368,90.313,15.55149349]
[1772620178088,0.04156016,90.368,90.314,4.47901002]
[1772620178290,0.04156016,90.366,90.316,4.47901002]
[1772620179178,0.04156016,90.366,90.315,38.75325249]
[1772620179395,0.04156016,90.409,90.336,4.47901002]
[1772620179702,0.04156016,90.409,90.315,38.75325249]
[1772620179703,11.0601643,90.415,90.356,4.47901002]
[1772620179905,0.04156016,90.429,90.356,4.47901002]
[1772620180090,11.06084571,90.409,90.356,4.47901002]
[1772620180287,0.04156016,90.429,90.361,4.47901002]
[1772620182501,0.04156016,90.429,90.337,55.34811536]
[1772620182502,0.04156016,90.409,90.362,11.06659879]
[1772620183095,0.04156016,90.409,90.363,4.47901002]
[1772620183406,0.04156016,90.419,90.363,4.47901002]
[1772620183989,0.04156016,90.408,90.354,4.47901002]
[1772620184187,0.04156016,90.408,90.323,4.47901002]
[1772620184402,0.04156016,90.406,90.33,4.47901002]
[1772620185186,0.04156016,90.406,90.331,4.82477569]
[1772620185387,0.04156016,90.406,90.346,0.28432314]
[1772620185594,0.04156016,90.406,90.347,4.47901002]
[1772620186109,11.06096805,90.408,90.347,4.47901002]
[1772620186302,0.1,90.41,90.352,4.76333316]
[1772620186495,0.1,90.41,90.357,4.47901002]
[1772620188400,0.1,90.41,90.362,4.47901002]
[1772620189307,0.04156016,90.409,90.362,4.47901002]
[1772620190123,0.1,90.41,90.362,4.47901002]
[1772620190909,0.1,90.41,90.364,4.47901002]
[1772620192406,0.1,90.41,90.363,38.73266712]
[1772620192407,0.1,90.41,90.363,11.06647632]
[1772620192808,0.1,90.41,90.366,4.47901002]
[1772620193212,0.04156016,90.409,90.366,4.47901002]
[1772620195310,0.04156016,90.409,90.367,11.06598647]
[1772620196128,0.04156016,90.409,90.367,15.54499649]
[1772620198827,0.04156016,90.409,90.368,4.47901002]
[1772620200437,0.04156016,90.409,90.312,23.20759531]
[1772620200438,0.04156016,90.408,90.347,4.47901002]
[1772620200623,0.04156016,90.408,90.349,4.47901002]
[1772620202323,0.04156016,90.406,90.351,4.47901002]
[1772620202515,11.06096805,90.408,90.351,4.47901002]
[1772620203318,0.04156016,90.407,90.351,4.47901002]
[1772620203733,0.04156016,90.406,90.351,4.47901002]
[1772620204432,0.04156016,90.404,90.353,4.47901002]
[1772620204823,0.1,90.41,90.361,9.58810885]
[1772620205140,0.1,90.41,90.367,4.47901002]
[1772620205638,0.04156016,90.435,90.366,4.47901002]
[1772620205639,27.645325,90.432,90.366,4.47901002]
[1772620206016,0.28432314,90.433,90.366,4.47901002]
[1772620206222,11.057788,90.434,90.366,4.47901002]
[1772620206417,11.057788,90.434,90.361,3.69383402]
[1772620206418,0.04156016,90.443,90.371,4.47901002]
[1772620206622,0.18372173,90.443,90.376,4.47901002]
[1772620206840,0.04156016,90.443,90.376,4.47901002]
[1772620207035,11.05644314,90.445,90.386,4.47901002]
[1772620207741,0.04156016,90.443,90.386,4.47901002]
[1772620208640,0.04156016,90.441,90.391,4.47901002]
[1772620209043,5.03580007,90.44,90.382,4.47901002]
[1772620209229,5.03580007,90.44,90.32,1.10717449]
[1772620209230,0.04156016,90.418,90.362,4.47901002]
[1772620209425,93.9818449,90.443,90.344,4.47901002]
[1772620209426,0.04156016,90.408,90.344,4.47901002]
[1772620209743,0.04156016,90.408,90.296,18.55583693]
[1772620209744,0.28432314,90.359,90.298,4.47901002]
[1772620210138,0.04156016,90.389,90.306,4.76333316]
[1772620210442,0.04156016,90.389,90.317,4.47901002]
[1772620210630,0.04156016,90.388,90.317,4.47901002]
[1772620211928,0.04156016,90.386,90.322,4.47901002]
[1772620214346,0.04156016,90.384,90.324,4.47901002]
[1772620214526,0.28432314,90.385,90.325,4.47901002]
[1772620215650,0.3258833,90.385,90.325,4.47901002]
[1772620215851,0.04156016,90.384,90.325,4.47901002]
[1772620216334,0.04156016,90.382,90.327,4.47901002]
[1772620216736,0.28432314,90.383,90.328,4.47901002]
[1772620217941,0.04156016,90.382,90.328,4.47901002]
[1772620218344,0.04156016,90.38,90.328,4.47901002]
[1772620219254,0.04156016,90.38,90.33,4.47901002]
[1772620220534,38.76694187,90.38,90.33,4.47901002]
[1772620220737,0.04156016,90.378,90.33,4.47901002]
[1772620221343,0.04156016,90.378,90.322,4.47901002]
[1772620221746,0.04156016,90.378,90.295,12.24889608]
[1772620221928,5.03580007,90.35,90.297,4.47901002]
[1772620222128,3.69383402,90.377,90.297,4.47901002]
[1772620222129,0.04156016,90.348,90.297,4.47901002]
[1772620222336,0.04156016,90.369,90.297,4.47901002]
[1772620222638,0.04156016,90.369,90.3,4.47901002]
[1772620222960,0.04156016,90.369,90.302,4.47901002]
[1772620223543,0.04156016,90.368,90.302,4.47901002]
[1772620224433,12.13294998,90.442,90.301,38.75926069]
[1772620224434,9.13315754,90.465,90.375,60.49941893]
[1772620224654,0.2,90.51,90.375,60.49941893]
[1772620224655,5.23580007,90.51,90.388,12.24889608]
[1772620224841,12.11663035,90.496,90.413,3.69383402]
[1772620225034,4.5,90.495,90.438,5.10909883]
[1772620225348,4.5,90.495,90.437,3.69383402]
[1772620225349,0.2,90.51,90.453,9.2456452]
[1772620225653,0.2,90.51,90.408,18.55583693]
[1772620225654,38.67446048,90.499,90.419,4.63175104]
[1772620225950,38.67446048,90.499,90.426,3.69383402]
[1772620226152,5.23580007,90.51,90.41,82.95542527]
[1772620226153,0.2,90.51,90.432,4.63175104]
[1772620226336,11.04917406,90.505,90.432,4.63175104]
[1772620226543,0.2,90.51,90.432,4.63175104]
[1772620226837,0.2,90.51,90.439,0.28432314]
[1772620227041,0.2,90.51,90.443,4.63175104]
[1772620227241,4.5893887,90.5,90.443,4.63175104]
[1772620227443,4.3893887,90.498,90.443,4.3474279]
[1772620227834,4.3893887,90.498,90.451,4.3474279]
[1772620228445,4.3893887,90.496,90.433,38.70268596]
[1772620228747,4.3893887,90.496,90.434,4.3474279]
[1772620228932,4.3893887,90.496,90.436,4.3474279]
[1772620229135,4.3893887,90.496,90.435,38.70183003]
[1772620229136,4.3893887,90.496,90.438,8.04126192]
[1772620229431,4.3893887,90.485,90.435,11.05766572]
[1772620230232,4.3893887,90.485,90.429,11.05833887]
[1772620230833,4.3893887,90.483,90.419,0.28432314]
[1772620231149,4.3893887,90.475,90.418,27.64907722]
[1772620231351,0.28432314,90.47,90.415,11.0601117]
[1772620231543,5.03580007,90.48,90.415,11.0601117]
[1772620231544,4.3893887,90.465,90.415,11.0601117]
[1772620231744,38.68087175,90.484,90.389,27.65810511]
[1772620231745,0.28432314,90.452,90.389,27.65810511]
[1772620231941,5.03580007,90.46,90.389,27.65810511]
[1772620231942,4.3893887,90.445,90.395,11.06243678]
[1772620232745,4.3893887,90.435,90.378,11.06463962]
[1772620232956,4.3893887,90.433,90.366,4.3474279]
[1772620233250,4.3893887,90.425,90.368,3.69383402]
[1772620234968,4.3893887,90.425,90.371,4.3474279]
[1772620235166,4.3893887,90.423,90.371,4.3474279]
[1772620237254,11.05925549,90.422,90.373,4.3474279]
[1772620237453,4.3893887,90.421,90.373,4.3474279]
[1772620237949,4.3893887,90.421,90.349,12.24889608]
[1772620237950,0.28432314,90.408,90.35,4.3474279]
[1772620238147,0.28432314,90.414,90.35,4.3474279]
[1772620238148,4.3893887,90.405,90.35,4.3474279]
[1772620238449,4.3893887,90.395,90.329,4.3474279]
[1772620238752,4.3893887,90.385,90.315,4.3474279]
[1772620238956,4.3893887,90.375,90.315,4.3474279]
[1772620239155,4.3893887,90.373,90.317,4.3474279]
[1772620239552,4.3893887,90.373,90.284,12.24889608]
[1772620239752,4.3893887,90.319,90.27,0.2]
[1772620240058,171.50950492,90.374,90.26,0.2]
[1772620240059,0.28432314,90.3,90.26,0.2]
[1772620240257,5.03580007,90.32,90.243,4.3474279]
[1772620240464,0.28432314,90.316,90.244,4.3474279]
[1772620240660,4.257,90.349,90.247,4.3474279]
[1772620240852,4.54132314,90.339,90.256,4.3474279]
[1772620241048,4.54132314,90.337,90.26,3.69383402]
[1772620241361,4.54132314,90.337,90.261,4.3474279]
[1772620242152,0.28432314,90.32,90.263,4.3474279]
[1772620242545,4.257,90.321,90.263,4.3474279]
[1772620243263,9.29280007,90.32,90.263,4.3474279]
[1772620243459,38.7481041,90.327,90.271,4.3474279]
[1772620244268,27.67721722,90.327,90.273,4.3474279]
[1772620244848,11.0694163,90.339,90.282,4.63175104]
[1772620245969,11.0694163,90.339,90.282,4.3474279]
[1772620245970,4.257,90.338,90.282,4.3474279]
[1772620246177,11.06966137,90.337,90.283,11.07628235]
[1772620246472,11.06966137,90.337,90.284,4.3474279]
[1772620246875,11.06966137,90.337,90.29,4.3474279]
[1772620247659,11.06696621,90.359,90.311,4.3474279]
[1772620247846,11.06587617,90.368,90.321,4.3474279]
[1772620248459,11.06587617,90.368,90.323,4.32220411]
[1772620248646,27.66075076,90.381,90.322,11.07149974]
[1772620248647,11.06514497,90.374,90.33,0.28432314]
[1772620248851,2.03858277,90.36,90.333,4.32220411]
[1772620249166,11.06434671,90.381,90.341,4.32220411]
[1772620249370,17.94707154,90.438,90.331,3.69383402]
[1772620249371,4.4,90.498,90.346,0.2]
[1772620249662,11.04984585,90.499,90.405,4.82477569]
[1772620249663,4.4,90.459,90.405,4.82477569]
[1772620249964,4.4,90.459,90.406,0.28432314]
[1772620250145,4.4,90.459,90.348,12.24889608]
[1772620250146,4.4,90.459,90.412,0.28432314]
[1772620250345,5.03580007,90.49,90.416,3.69383402]
[1772620250650,11.04984585,90.499,90.427,0.28432314]
[1772620250964,38.67446048,90.499,90.429,0.28432314]
[1772620251461,5.03580007,90.49,90.429,0.28432314]
[1772620251958,38.67446048,90.499,90.413,38.71124727]
[1772620251959,38.67446048,90.499,90.438,4.60652725]
[1772620252166,0.28432314,90.498,90.438,4.32220411]
[1772620252349,4.10160916,90.498,90.424,0.28432314]
[1772620252549,4.10160916,90.489,90.426,0.28432314]
[1772620253262,4.10160916,90.469,90.411,4.32220411]
[1772620254560,4.10160916,90.467,90.411,4.32220411]
[1772620255260,4.10160916,90.467,90.399,27.654868]
[1772620255261,4.10160916,90.449,90.399,4.32220411]
[1772620255453,4.10160916,90.439,90.388,4.32220411]
[1772620255654,4.10160916,90.439,90.39,3.69383402]
[1772620256161,4.10160916,90.439,90.39,8.01603813]
[1772620256355,4.10160916,90.439,90.391,4.32220411]
[1772620257366,11.05729892,90.438,90.396,4.32220411]
[1772620257660,32.66933311,90.45,90.4,4.32220411]
[1772620257661,27.63971496,90.45,90.4,4.32220411]
[1772620257860,11.05436536,90.462,90.41,4.32220411]
[1772620258751,11.05436536,90.462,90.401,1.39050559]
[1772620258752,11.05221119,90.48,90.422,4.32220411]
[1772620258949,11.05221119,90.48,90.401,1.10618245]
[1772620258950,11.05143675,90.486,90.44,0.28432314]
[1772620259161,11.05143675,90.486,90.441,4.32220411]